Cogmind - Beta 14 @@@ ROGUE MODE // 2024.09.27 @ 10:08:58 Player: Kinga Result: Self-destructed Performance ------------- Evolutions (6) 3000 Regions Visited (16) 3200 Robots Destroyed (172) 860 Value Destroyed (6923) 6923 Prototype IDs (43) 860 Alien Tech Used (0) 0 Bonus (2572) 2572 TOTAL SCORE: 17415 Bonus ------- High Alert Combat Kills 152 Entered DSFs 500 Met Data Miner 300 Acquired ECA 300 Met Warlord at Base 500 MAIN.C Attacked Warlord 500 Warlord Defense Kills 320 Cogmind --------- Core Integrity 766/1150 Matter 200/300 Energy 4/100 System Corruption 3% Temperature Hot (242) Movement Rolling (90) Location -4/Factory Parts ------- > --- POWER (2) -------- (None) > --- PROPULSION (4) --- Centrium Wheel Centrium Wheel > --- UTILITY (9) ------ Improved Coolant Injector Advanced Thermal Shield > --- WEAPON (4) ------- Hypervelocity Mass Driver > --- INVENTORY (5) ---- Stealth Drone Bay (2/2) Smartbomb Launcher Thermoblaster Peak State ------------ > --- POWER ------------ Vortex Chain Reactor > --- PROPULSION ------- Armored Huge Wheel > --- UTILITY ---------- Improved Coolant Injector Large Storage Unit Advanced Energy Well Improved Target Analyzer Layered Medium Armor Plating Centrium Light Armor Plating Centrium Medium Armor Plating Experimental Thermal Shield Experimental Shock Absorption System > --- WEAPON ----------- Thermic Laser Neutron Cannon Compact Linear Accelerator Particle Cleaver > --- INVENTORY -------- Angular Momentum Engine Light Angular Momentum Engine Armored Treads Advanced Treads Advanced Treads Medium Treads Compact Battery Encrypted Comm Array Long-range Tractor Beam Vortex Cannon Vortex Cannon Heavy Shock Bomb Launcher Thermoblaster [Rating: 127] Favorites ----------- Power Light Angular Momentum Engine Engine Light Angular Momentum Engine Power Core Neutrino Core Reactor Vortex Chain Reactor Propulsion Armored Treads Treads Armored Treads Wheel Armored Huge Wheel Utility Large Storage Unit Device Structural Scanner Storage Large Storage Unit Processor Improved Target Analyzer Protection Hardened Heavy Armor Plating Weapon Gatling Laser Energy Gun Gatling Laser Energy Cannon Advanced Plasma Cannon Ballistic Gun Assault Rifle Ballistic Cannon Compact Linear Accelerator Launcher Heavy Shock Bomb Launcher Slashing Weapon Particle Cleaver Build | -11 -10 -9 -8 -7 -7 -6 -6 -6 -6 -5 -5 -5 -5 -5 -4 -4 ------- Run | Yrd Mat Mat Mat Fac DSF Fac Low Low Dat Pro Fac Upp Upp War Pro Fac Slots Evolved 12 | . . 2 2 2 . 2 . . . . 2 . . . . 2 Power 1 | . . . . . . 1 . . . . . . . . . . Propulsion 2 | . . . . . . . . . . . . . . . . 2 Utility 7 | . . . 2 2 . 1 . . . . 2 . . . . . Weapon 2 | . . 2 . . . . . . . . . . . . . . Parts Attached 158 | 7 4 20 12 3 2 14 7 10 . 1 4 1 2 19 20 32 Power 20 | 1 . 2 1 . 1 2 2 3 . . . . . 1 4 3 Engine 11 | 1 . 2 . . 1 2 1 2 . . . . . . 2 . Core 4 | . . . 1 . . . 1 1 . . . . . . 1 . Reactor 5 | . . . . . . . . . . . . . . 1 1 3 Propulsion 20 | 2 . 4 2 . . 2 . 1 . . 1 . . . 3 5 Treads 15 | 2 . 4 2 . . 2 . 1 . . . . . . 3 1 Leg . | . . . . . . . . . . . . . . . . . Wheel 5 | . . . . . . . . . . . 1 . . . . 4 Hover . | . . . . . . . . . . . . . . . . . Flight . | . . . . . . . . . . . . . . . . . Utility 60 | 1 2 1 3 3 1 8 2 3 . 1 3 1 2 12 5 12 Device 38 | . 1 . 2 2 1 5 2 3 . 1 3 . 1 6 4 7 Storage 6 | 1 1 1 . . . . . . . . . . . 1 . 2 Processor 2 | . . . . . . . . . . . . . 1 . 1 . Hackware . | . . . . . . . . . . . . . . . . . Protection 14 | . . . 1 1 . 3 . . . . . 1 . 5 . 3 Artifact . | . . . . . . . . . . . . . . . . . Weapon 58 | 3 2 13 6 . . 2 3 3 . . . . . 6 8 12 Energy Gun 26 | . . 8 4 . . 2 3 2 . . . . . 2 1 4 Energy Cannon 12 | . . 2 2 . . . . 1 . . . . . 2 1 4 Ballistic Gun 12 | 3 1 3 . . . . . . . . . . . . 4 1 Ballistic Cannon 5 | . . . . . . . . . . . . . . 1 1 3 Launcher 2 | . 1 . . . . . . . . . . . . . 1 . Special Weapon . | . . . . . . . . . . . . . . . . . Impact Weapon . | . . . . . . . . . . . . . . . . . Slashing Weapon 1 | . . . . . . . . . . . . . . 1 . . Piercing Weapon . | . . . . . . . . . . . . . . . . . Special Melee Weapon . | . . . . . . . . . . . . . . . . . Unidentified Prototypes 21 | . . 3 . . . . . . . . 1 . . 14 1 2 Corrupted Parts 5 | . . . . . . . . . . . . . . . 5 . System Corruption 35 | . . . . . . . . . . . . . . . 35 . Parts Lost 62 | . . 1 4 . . 3 4 2 . 1 . . 2 7 12 26 Power 11 | . . . 1 . . 1 1 1 . . . . . . 3 4 Propulsion 7 | . . . . . . . . . . . . . . . 2 5 Utility 23 | . . . 1 . . 1 . . . 1 . . 2 5 3 10 Weapon 21 | . . 1 2 . . 1 3 1 . . . . . 2 4 7 Highest Loss Streak 14 | . . 1 2 . . 1 4 2 . 1 . . 2 5 8 14 To Critical Strikes . | . . . . . . . . . . . . . . . . . Average Slot Usage (%) 86 | . 98 97 98 92 92 96 92 91 93 91 77 76 75 72 88 78 Engine 8 | . 14 11 6 . 6 13 11 10 13 13 11 11 11 6 3 . Treads 10 | . 28 21 18 15 15 13 13 13 13 13 2 . . . 8 10 Wheel 1 | . . . . . . . . . . . 4 5 5 5 . 1 Device 21 | . 12 11 20 23 23 25 26 26 26 25 23 23 21 16 21 24 Storage 7 | . 14 11 9 7 7 6 6 6 6 6 5 5 5 5 11 7 Processor 1 | . . . . . . . . . . . . . . 5 5 4 Protection 5 | . . . 6 7 7 9 6 6 6 6 5 5 5 5 7 3 Energy Gun 20 | . . 25 24 30 30 25 25 23 26 26 23 23 23 21 . 10 Energy Cannon 1 | . . . 10 . . . . 1 . . . . . . 1 6 Ballistic Gun 3 | . 27 16 . . . . . . . . . . . . 7 . Peak Build Rating 127 | 6 7 20 36 43 46 62 65 69 69 69 91 95 99 127 125 118 Average Rating 69 | 4 6 15 27 43 44 56 60 66 69 67 89 92 94 103 101 90 On Entrance 58 | . 6 7 20 36 43 46 60 65 69 69 64 91 95 99 118 100 Naked Turns . | . . . . . . . . . . . . . . . . . Heaviest Build 115 | 14 24 41 47 66 70 85 84 86 84 88 87 87 87 103 100 115 Greatest Support 72 | 40 40 40 40 40 40 56 56 56 48 48 48 28 28 28 44 72 Greatest Overweight (x) 15 | . . 2 1 1 1 2 1 1 1 1 3 3 3 3 3 15 Average Overweight (x) 1 | . . . . 1 1 1 1 1 1 1 2 3 3 2 1 . Largest Inventory Capacity 15 | 8 10 15 15 15 15 15 15 15 15 15 15 15 15 15 15 15 Average Capacity 14 | 7 9 13 15 15 15 15 15 15 15 15 15 15 15 15 15 14 Most Carried 15 | 4 6 15 15 14 15 15 15 15 15 15 15 15 15 15 14 15 Average Carried 13 | 2 4 10 14 13 14 14 14 14 15 14 12 14 14 14 12 13 Final Capacity 15 | 8 10 15 15 15 15 15 15 15 15 15 15 15 15 15 15 5 Final Carried 15 | 4 5 15 15 14 15 15 15 15 15 15 15 15 13 14 10 5 Class Distribution -------------------- 35% | Scavenger-Tank 22% | Derelict-Skirmisher 17% | Tank 14% | Skirmisher 5% | Mutant Dominant Class ---------------- Mutant | -10/Materials Skirmisher | -9/Materials Tank | -8/Materials Tank | -7/Factory Tank | -7/DSF Scavenger-Tank | -6/Factory Scavenger-Tank | -6/Lower Caves Scavenger-Tank | -6/Lower Caves Scavenger-Tank | -6/Data Miner Derelict-Tank | -5/Proximity Caves Skirmisher | -5/Factory Skirmisher | -5/Upper Caves Derelict-Skirmisher | -5/Upper Caves Derelict-Skirmisher | -5/Warlord Scavenger-Tank | -4/Proximity Caves Scavenger-Tank | -4/Factory Resources | -11 -10 -9 -8 -7 -7 -6 -6 -6 -6 -5 -5 -5 -5 -5 -4 -4 ----------- Run | Yrd Mat Mat Mat Fac DSF Fac Low Low Dat Pro Fac Upp Upp War Pro Fac Matter Collected 3258 | 176 311 483 141 . 50 132 72 118 . 24 40 10 95 165 603 838 Remotely 1012 | . . . . . . . . . . . . . . . 176 836 Salvage Created 7774 | . 344 1203 569 . 597 1373 604 289 . 138 101 70 376 142 293 1675 Parts 308 | . 19 72 35 . 25 58 21 11 . 2 3 . 12 . 11 39 Haulers Intercepted 8 | . . 4 1 . 1 1 . . . . 1 . . . . . Recyclers Shooed 5 | . . 3 . . . 2 . . . . . . . . . . Parts Field Recycled . | . . . . . . . . . . . . . . . . . Retrieved Matter . | . . . . . . . . . . . . . . . . . Parts Self-Destructed 49 | . . . . . . . 12 11 . 2 . . 13 . 11 . Prevented 8 | . . . . . . . . . . . . . . . 8 . Kills | -11 -10 -9 -8 -7 -7 -6 -6 -6 -6 -5 -5 -5 -5 -5 -4 -4 ------- Run | Yrd Mat Mat Mat Fac DSF Fac Low Low Dat Pro Fac Upp Upp War Pro Fac Combat Hostiles Destroyed 140 | . 8 22 13 . 11 23 11 9 . 2 . 1 8 2 8 22 Guns 104 | . 8 22 9 . 11 21 9 8 . 1 . 1 5 . 1 8 Cannons 19 | . . . 4 . . . . . . . . . . . 7 8 AOE 3 | . . . . . . . . . . . . . . . . 3 Classes Destroyed 17 | . 3 6 2 . 1 1 2 . . . . . 1 1 . . Worker 5 | . . 1 . . . 2 . . . . 1 . . . . 1 Builder 4 | . 1 . . . . 1 . . . . . . . . . 2 Hauler 8 | . . 4 1 . 1 1 . . . . 1 . . . . . Recycler 7 | . . 1 1 . . 2 . . . . . . . . . 3 Watcher 8 | . 1 2 1 . . 4 . . . . . . . . . . Swarmer 34 | . . 5 6 . . 8 . 6 . . . . 4 . . 5 Grunt 51 | . 8 9 2 . 6 8 3 2 . . . . 1 1 3 8 Brawler 4 | . . 2 . . . 1 . . . . . . 1 . . . Duelist 1 | . . . 1 . . . . . . . . . . . . . Sentry 20 | . . 6 3 . 1 3 . 1 . . . 1 1 . . 4 Specialist 4 | . . . . . 4 . . . . . . . . . . . Hunter 7 | . . . . . . . 2 . . 2 . . . . 3 . Programmer 7 | . . . . . . 2 . . . . . . . . 1 4 Heavy 3 | . . . 1 . . 1 . . . . . . . . . 1 Behemoth 2 | . . . . . . . . . . . . . 1 . 1 . Striker 1 | . . . . . . . . . . . . . . 1 . . Thug 4 | . . . . . . . 4 . . . . . . . . . Savage 1 | . . . . . . . 1 . . . . . . . . . Mutant 1 | . . . . . . . 1 . . . . . . . . . Best Kill Streak 8 | . 3 5 8 . 6 5 4 4 . 2 1 1 3 2 2 6 Combat Bots Only 8 | . 3 4 8 . 5 4 4 4 . 2 . 1 3 2 2 5 Max Kills in Single Turn 4 | . 2 2 1 . 1 2 1 4 . 1 1 1 2 1 1 2 Gunslinging 2 | . . 1 . . . 1 . 2 . . . . 1 . . . Exploded 2 | . . . . . . . . . . . . . . . . 2 Melee . | . . . . . . . . . . . . . . . . . Uniques/NPCs Destroyed . | . . . . . . . . . . . . . . . . . Combat | -11 -10 -9 -8 -7 -7 -6 -6 -6 -6 -5 -5 -5 -5 -5 -4 -4 -------- Run | Yrd Mat Mat Mat Fac DSF Fac Low Low Dat Pro Fac Upp Upp War Pro Fac Hostile Shots Fired 1201 | . 47 59 67 . 69 115 71 73 . 9 . 6 41 147 191 306 Missed 355 | . 18 15 17 . 29 45 19 28 . 1 . 4 11 51 49 68 Damage Taken 13599 | . 341 508 787 . 477 814 837 436 . 136 . 45 372 2127 2628 4091 Core 1323 | . 59 101 165 . 12 73 45 52 . . . . 18 205 209 384 Absorbed by Shields 660 | . . . . . 38 252 168 128 . . . . . . . 74 Redirected to Shielding 108 | . . . . . . . . . . . . . . . . 108 Ignored by Resistances 1387 | . . . . . . . . . . . . . . 74 277 1036 Regen/Repaired (Parts) 223 | . . . . . . . . . . . . . . 223 . . Core Remaining (%) 79 | 100 76 74 70 . 98 . . . . 80 . . . . 56 . Volleys Fired 370 | . 34 51 31 . 18 42 23 14 . 3 4 3 15 4 47 81 Largest 4 | . 2 4 4 . 4 4 4 4 . 4 4 4 4 4 4 4 Hottest 328 | . 40 224 320 . 320 325 320 310 . 320 320 320 320 320 291 328 Shots Fired 1159 | . 67 194 90 . 72 166 65 50 . 11 16 10 56 10 140 212 Gun 904 | . 66 194 52 . 72 166 65 50 . 11 16 10 56 10 43 93 Cannon 246 | . . . 38 . . . . . . . . . . . 89 119 Launcher 9 | . 1 . . . . . . . . . . . . . 8 . Special . | . . . . . . . . . . . . . . . . . Kinetic 334 | . 66 118 . . . . . . . . . . . . 88 62 Thermal 793 | . . 76 90 . 72 166 65 42 . 11 16 10 56 10 34 145 Explosive 1 | . 1 . . . . . . . . . . . . . . . Electromagnetic 21 | . . . . . . . . 8 . . . . . . 8 5 Entropic 10 | . . . . . . . . . . . . . . . 10 . Robot Hit Streak 19 | . 8 19 8 . 18 15 8 6 . 7 4 6 7 4 9 17 Robot Miss Streak 6 | . 3 4 4 . 4 6 4 4 . 1 5 2 4 3 4 4 Penetration Max 1 | . . . . . . . . . . . . . . . . 1 Secondary Targets 26 | . 1 6 . . 2 4 3 4 . 1 . . 3 . . 2 Max Gunslinging Chain 2 | . 1 1 . . 1 1 1 2 . 1 . . 1 . . 1 Shots Hit Robots 741 | . 43 107 48 . 55 118 59 32 . 8 5 7 35 5 80 139 Core Hits 402 | 1 17 47 24 . 40 107 47 17 . 3 3 3 10 1 22 60 Critical Kills 5 | . . . . . . . . . . . . . . . . 5 Critical Parts Destroyed 8 | . . 2 . . . . . . . . . . . . 2 4 Critical Strikes 58 | . . 8 1 . . 2 . 3 . 3 2 1 8 3 8 19 Burn 38 | . . 6 1 . . 2 . 3 . 3 2 1 8 3 . 9 Meltdown 2 | . . . . . . . . . . . . . . . . 2 Destroy 11 | . . 2 . . . . . . . . . . . . 2 7 Blast 5 | . . . . . . . . . . . . . . . 5 . Corrupt 1 | . . . . . . . . . . . . . . . . 1 Sunder 1 | . . . . . . . . . . . . . . . 1 . Melee Attacks . | . . . . . . . . . . . . . . . . . Impact . | . . . . . . . . . . . . . . . . . Slashing . | . . . . . . . . . . . . . . . . . Piercing . | . . . . . . . . . . . . . . . . . Sneak Attacks . | . . . . . . . . . . . . . . . . . Combat Hostiles . | . . . . . . . . . . . . . . . . . Follow-up Attacks . | . . . . . . . . . . . . . . . . . Damage Inflicted 17387 | 6 547 1467 900 . 1351 2802 1274 739 . 155 98 139 718 92 3012 4087 Guns 11383 | . 542 1462 628 . 1351 2802 1274 632 . 155 98 139 718 92 252 1238 Cannons 4794 | . . . 266 . . . . . . . . . . . 2484 2044 Explosions 1187 | . . . . . . . . 107 . . . . . . 276 804 Melee . | . . . . . . . . . . . . . . . . . Ramming 23 | 6 5 5 6 . . . . . . . . . . . . 1 Kinetic 3968 | . 542 822 . . . . . . . . . . . . 1622 982 Thermal 11971 | . . 640 894 . 1351 2802 1274 657 . 155 98 139 718 92 515 2636 Explosive 374 | . . . . . . . . . . . . . . . . 374 Electromagnetic 452 | . . . . . . . . 82 . . . . . . 276 94 Impact . | . . . . . . . . . . . . . . . . . Slashing . | . . . . . . . . . . . . . . . . . Piercing . | . . . . . . . . . . . . . . . . . Entropic 599 | . . . . . . . . . . . . . . . 599 . Highest Corruption 35 | . 2 . . . . 2 3 3 3 3 . . . . 35 3 Average Corruption 3 | . 1 . . . . 1 2 3 3 2 . . . . 6 1 Corruption Purged 5 | . . . . . . 2 . . . 3 . . . . . . Corruption Blocked . | . . . . . . . . . . . . . . . . . Effects 57 | . 1 . . . . 6 3 8 . 4 . . . . 27 8 Message Errors 10 | . . . . . . 2 . 2 . . . . . . 4 2 Matter Fused 14 | . . . . . . 2 1 3 . 1 . . . . 7 . Heat Flow Errors 9 | . . . . . . 1 1 2 . . . . . . 3 2 Energy Discharges 7 | . . . . . . 1 1 1 . 1 . . . . 2 1 Parts Rejected 1 | . . . . . . . . . . . . . . . . 1 Data Loss (minor) 5 | . . . . . . . . . . 1 . . . . 3 1 Data Loss (major) 3 | . 1 . . . . . . . . . . . . . 2 . Misfires 5 | . . . . . . . . . . 1 . . . . 3 1 Weapon Failures 3 | . . . . . . . . . . . . . . . 3 . Overload Shots . | . . . . . . . . . . . . . . . . . Overflow Damage 192 | . . . . . . . . . . . . . . . . 192 Projectiles 21 | . . . . . . . . . . . . . . . . 21 Explosions 171 | . . . . . . . . . . . . . . . . 171 Melee . | . . . . . . . . . . . . . . . . . Knockbacks 9 | . . . . . . . . . . . . . . . 6 3 Impact . | . . . . . . . . . . . . . . . . . Kinetic 9 | . . . . . . . . . . . . . . . 6 3 Secondary . | . . . . . . . . . . . . . . . . . Self-Inflicted Damage 288 | . . . . . . . . . . . . . . . . 288 Shots 4 | . . . . . . . . . . . . . . . . 4 Rammed 10 | 3 2 4 . . . . . . . . . . . . . 1 Targets Rammed 12 | 3 3 4 1 . . . . . . . . . . . . 1 Kicked . | . . . . . . . . . . . . . . . . . Crushed 2 | . 1 . 1 . . . . . . . . . . . . . Highest Temperature 545 | . 5 390 417 . 162 411 416 545 . 136 274 265 380 151 199 212 Average Temperature 131 | . 2 136 148 . 51 131 180 238 . 64 122 166 151 89 114 121 Received Heat Transfer 3427 | . 189 192 63 . 217 144 259 56 . . . . 361 632 159 1155 Effects 16 | . . 2 7 . . 1 . 5 . . . . 1 . . . Shutdowns 1 | . . . 1 . . . . . . . . . . . . . Energy Bleed 3 | . . 1 1 . . 1 . . . . . . . . . . Interference 5 | . . . 4 . . . . 1 . . . . . . . . Matter Decay 3 | . . 1 1 . . . . . . . . . 1 . . . Short Circuit 1 | . . . . . . . . 1 . . . . . . . . Damage (minor) 1 | . . . . . . . . 1 . . . . . . . . Damage (major) 2 | . . . . . . . . 2 . . . . . . . . Siege Activations . | . . . . . . . . . . . . . . . . . Robots Corrupted . | . . . . . . . . . . . . . . . . . Combat Hostiles . | . . . . . . . . . . . . . . . . . Parts Fried 1 | . . . . . . . . . . . . . . . . 1 Impact Corruptions . | . . . . . . . . . . . . . . . . . Robots Melted 14 | . . . . . . 2 2 1 . 1 . . 3 2 . 3 Combat Hostiles 14 | . . . . . . 2 2 1 . 1 . . 3 2 . 3 Parts Melted 96 | . . 3 9 . 8 16 7 4 . 7 3 2 7 4 . 26 Heat Transferred 27366 | . . 1850 1939 . 3075 6500 2925 1775 . 622 424 398 2275 467 200 4916 Parts Sabotaged 2 | . . . . . . . . . . . . . . 2 . . Parts Stolen . | . . . . . . . . . . . . . . . . . Parts Stripped . | . . . . . . . . . . . . . . . . . Power Chain Reactions 1 | . . . . . . . . 1 . . . . . . . . Alert | -11 -10 -9 -8 -7 -7 -6 -6 -6 -6 -5 -5 -5 -5 -5 -4 -4 ------- Run | Yrd Mat Mat Mat Fac DSF Fac Low Low Dat Pro Fac Upp Upp War Pro Fac Peak Influence 532 | . 213 479 419 154 422 422 . . . . 14 . . . . 532 Initial 221 | . . 26 154 154 107 221 . . . . . . . . . 25 Average 230 | . 88 302 211 154 298 255 . . . . 3 . . . . 259 Maximum Alert Level 2 | . 1 2 2 . 2 2 . . . . . . . . . 2 Low Security (%) 42 | 100 97 20 56 100 22 11 . . . . 100 . . . . 57 Level 1 43 | . 2 52 42 . 42 86 . . . . . . . . . 10 Level 2 13 | . . 26 . . 35 1 . . . . . . . . . 32 Level 3 . | . . . . . . . . . . . . . . . . . Level 4 . | . . . . . . . . . . . . . . . . . Level 5 . | . . . . . . . . . . . . . . . . . High Security . | . . . . . . . . . . . . . . . . . Max Security . | . . . . . . . . . . . . . . . . . Sterilizations 1 | . . . . . 1 . . . . . . . . . . . Squads Dispatched 23 | . 2 2 2 . 2 5 . . . . . . . . . 10 Investigation 5 | . 2 2 1 . . . . . . . . . . . . . Extermination 4 | . . . . . . 2 . . . . . . . . . 2 Reinforcement 11 | . . . 1 . 2 3 . . . . . . . . . 5 Assault . | . . . . . . . . . . . . . . . . . Garrison 3 | . . . . . . . . . . . . . . . . 3 Intercept . | . . . . . . . . . . . . . . . . . Searches Triggered . | . . . . . . . . . . . . . . . . . Construction Impeded 1 | . . . . . . . . . . . . . . . . 1 Haulers Reinforced . | . . . . . . . . . . . . . . . . . Active Scanning Responses . | . . . . . . . . . . . . . . . . . Cargo Convoy Interrupts . | . . . . . . . . . . . . . . . . . Stealth | -11 -10 -9 -8 -7 -7 -6 -6 -6 -6 -5 -5 -5 -5 -5 -4 -4 --------- Run | Yrd Mat Mat Mat Fac DSF Fac Low Low Dat Pro Fac Upp Upp War Pro Fac Distress Signals 12 | . . 4 3 . . . . . . . . . . 1 . 4 Communications Jammed . | . . . . . . . . . . . . . . . . . Distress Signals . | . . . . . . . . . . . . . . . . . Times Spotted 201 | . 10 27 18 . 10 29 10 11 . 2 . 1 9 34 10 30 Peak Tracking Total 10 | . 3 4 9 . 6 5 5 4 . 2 . 1 3 10 3 7 Tactical Retreats 14 | . . 1 2 . 3 1 . 3 . . . . 2 2 . . Traps | -11 -10 -9 -8 -7 -7 -6 -6 -6 -6 -5 -5 -5 -5 -5 -4 -4 ------- Run | Yrd Mat Mat Mat Fac DSF Fac Low Low Dat Pro Fac Upp Upp War Pro Fac Traps Triggered 11 | . 2 2 1 . 4 2 . . . . . . . . . . Indirectly . | . . . . . . . . . . . . . . . . . Trap Hack Attempts . | . . . . . . . . . . . . . . . . . Triggered . | . . . . . . . . . . . . . . . . . Disarmed . | . . . . . . . . . . . . . . . . . Reprogrammed . | . . . . . . . . . . . . . . . . . Reused . | . . . . . . . . . . . . . . . . . Traps Extracted . | . . . . . . . . . . . . . . . . . Installed . | . . . . . . . . . . . . . . . . . Triggered 23 | . . . . . . . . . . . . . . 23 . . Machines | -11 -10 -9 -8 -7 -7 -6 -6 -6 -6 -5 -5 -5 -5 -5 -4 -4 ---------- Run | Yrd Mat Mat Mat Fac DSF Fac Low Low Dat Pro Fac Upp Upp War Pro Fac Machines Disabled 12 | . . . . . . . . . . . . . . . . 12 Max in Single Turn 9 | . . . . . . . . . . . . . . . . 9 Machines Repaired . | . . . . . . . . . . . . . . . . . Machines Dismantled . | . . . . . . . . . . . . . . . . . Machines Sabotaged . | . . . . . . . . . . . . . . . . . Overloaded Fab Kills . | . . . . . . . . . . . . . . . . . Hacking | -11 -10 -9 -8 -7 -7 -6 -6 -6 -6 -5 -5 -5 -5 -5 -4 -4 --------- Run | Yrd Mat Mat Mat Fac DSF Fac Low Low Dat Pro Fac Upp Upp War Pro Fac Machines Accessed 30 | . 3 6 . 2 . 7 . 1 4 . 1 . 1 4 . 1 Terminals 10 | . 1 4 . 1 . 4 . . . . . . . . . . Fabricators 3 | . . . . 1 . 1 . . . . . . . . . 1 Repair Stations 2 | . . . . . . 2 . . . . . . . . . . Recycling Units 4 | . 2 2 . . . . . . . . . . . . . . Scanalyzers . | . . . . . . . . . . . . . . . . . Garrison Access 1 | . . . . . . . . . . . 1 . . . . . Total Hacks 77 | . 6 16 . 2 . 13 . 1 27 . 2 . 1 8 . 1 Successful 52 | . 2 6 . 2 . 4 . 1 27 . . . 1 8 . 1 Failed 25 | . 4 10 . . . 9 . . . . 2 . . . . . Catastrophic 7 | . 1 4 . . . 2 . . . . . . . . . . Database Lockouts . | . . . . . . . . . . . . . . . . . Manual 23 | . 6 12 . . . 3 . . . . . . . 1 . 1 Terminals 25 | . 2 13 . 1 . 9 . . . . . . . . . . Fabricators 3 | . . . . 1 . 1 . . . . . . . . . 1 Repair Stations 3 | . . . . . . 3 . . . . . . . . . . Recycling Units 7 | . 4 3 . . . . . . . . . . . . . . Scanalyzers . | . . . . . . . . . . . . . . . . . Garrison Access 2 | . . . . . . . . . . . 2 . . . . . Terminal Hacks 46 | . 1 4 . 1 . 3 . 1 27 . . . 1 8 . . Record 13 | . . . . . . 1 . . 11 . . . . 1 . . Part Schematic 8 | . . . . . . . . . 8 . . . . . . . Robot Schematic 5 | . . . . . . . . . 5 . . . . . . . Prototype ID Bank 9 | . . . . . . 1 . . 3 . . . . 5 . . Open Door 4 | . . . . . . . . 1 . . . . 1 2 . . Open DSF 1 | . . . . 1 . . . . . . . . . . . . Branch Access Points 2 | . . 1 . . . 1 . . . . . . . . . . Recycling Unit Index 2 | . 1 1 . . . . . . . . . . . . . . Alert Level 1 | . . 1 . . . . . . . . . . . . . . Unreport Threat 1 | . . 1 . . . . . . . . . . . . . . Fabricator Hacks 2 | . . . . 1 . 1 . . . . . . . . . . Network Status 2 | . . . . 1 . 1 . . . . . . . . . . Repair Station Hacks . | . . . . . . . . . . . . . . . . . Recycling Unit Hacks . | . . . . . . . . . . . . . . . . . Scanalyzer . | . . . . . . . . . . . . . . . . . Garrison Access Hacks . | . . . . . . . . . . . . . . . . . Unauthorized Hacks 4 | . 1 2 . . . . . . . . . . . . . 1 Terminals . | . . . . . . . . . . . . . . . . . Fabricators 1 | . . . . . . . . . . . . . . . . 1 Liberate 1 | . . . . . . . . . . . . . . . . 1 Repair Stations . | . . . . . . . . . . . . . . . . . Recycling Units 3 | . 1 2 . . . . . . . . . . . . . . Tunnel 3 | . 1 2 . . . . . . . . . . . . . . Scanalyzers . | . . . . . . . . . . . . . . . . . Garrison Access . | . . . . . . . . . . . . . . . . . Data Cores Recovered . | . . . . . . . . . . . . . . . . . Used . | . . . . . . . . . . . . . . . . . Hacking Detections 13 | . 1 5 . . . 6 . . . . 1 . . . . . Full Trace Events 2 | . 1 1 . . . . . . . . . . . . . . Feedback Events . | . . . . . . . . . . . . . . . . . Feedback Blocked . | . . . . . . . . . . . . . . . . . Robot Schematics Acquired 5 | . . . . . . . . . 5 . . . . . . . Robots Built . | . . . . . . . . . . . . . . . . . Authchips . | . . . . . . . . . . . . . . . . . Time . | . . . . . . . . . . . . . . . . . Total Robot Build Rating . | . . . . . . . . . . . . . . . . . Part Schematics Acquired 8 | . . . . . . . . . 8 . . . . . . . Parts Built . | . . . . . . . . . . . . . . . . . Authchips . | . . . . . . . . . . . . . . . . . Time . | . . . . . . . . . . . . . . . . . Total Part Build Rating . | . . . . . . . . . . . . . . . . . Parts Repaired . | . . . . . . . . . . . . . . . . . Time . | . . . . . . . . . . . . . . . . . Parts Recycled . | . . . . . . . . . . . . . . . . . Recycled Matter . | . . . . . . . . . . . . . . . . . Retrieved Matter . | . . . . . . . . . . . . . . . . . Retrieved Components . | . . . . . . . . . . . . . . . . . Parts Scanalyzed . | . . . . . . . . . . . . . . . . . Part Schematics Acquired . | . . . . . . . . . . . . . . . . . Parts Damaged . | . . . . . . . . . . . . . . . . . Bothacking | -11 -10 -9 -8 -7 -7 -6 -6 -6 -6 -5 -5 -5 -5 -5 -4 -4 ------------ Run | Yrd Mat Mat Mat Fac DSF Fac Low Low Dat Pro Fac Upp Upp War Pro Fac Used RIF Installer . | . . . . . . . . . . . . . . . . . Robots Hacked . | . . . . . . . . . . . . . . . . . Non-combat . | . . . . . . . . . . . . . . . . . Combat . | . . . . . . . . . . . . . . . . . Robot Hacks Applied . | . . . . . . . . . . . . . . . . . Relay Couplers Released . | . . . . . . . . . . . . . . . . . Fabnet Peak Effective % . | . . . . . . . . . . . . . . . . . Robots Rewired . | . . . . . . . . . . . . . . . . . Allies Hacked . | . . . . . . . . . . . . . . . . . Hacks Repelled . | . . . . . . . . . . . . . . . . . Allies | -11 -10 -9 -8 -7 -7 -6 -6 -6 -6 -5 -5 -5 -5 -5 -4 -4 -------- Run | Yrd Mat Mat Mat Fac DSF Fac Low Low Dat Pro Fac Upp Upp War Pro Fac Total Allies . | . . . . . . . . . . . . . . . . . Largest Group . | . . . . . . . . . . . . . . . . . Highest-Rated Group . | . . . . . . . . . . . . . . . . . Highest-Rated Ally . | . . . . . . . . . . . . . . . . . Total Orders 5 | . . . . . . . . . . . . . . . . 5 EXPLORE 4 | . . . . . . . . . . . . . . . . 4 RETURN 1 | . . . . . . . . . . . . . . . . 1 Ally Attacks . | . . . . . . . . . . . . . . . . . Total Damage . | . . . . . . . . . . . . . . . . . Kills . | . . . . . . . . . . . . . . . . . Allies Corrupted . | . . . . . . . . . . . . . . . . . Allies Melted . | . . . . . . . . . . . . . . . . . Intel | -11 -10 -9 -8 -7 -7 -6 -6 -6 -6 -5 -5 -5 -5 -5 -4 -4 ------- Run | Yrd Mat Mat Mat Fac DSF Fac Low Low Dat Pro Fac Upp Upp War Pro Fac Robot Analysis Total . | . . . . . . . . . . . . . . . . . Derelict Logs Recovered 7 | . . . . . . . 2 . . 1 . . 3 . 1 . Drone Launches 6 | . . . . . . . . . . . . . . . . 6 Drone Recoveries 6 | . . . . . . . . . . . . . . . . 6 Exploration | -11 -10 -9 -8 -7 -7 -6 -6 -6 -6 -5 -5 -5 -5 -5 -4 -4 ------------- Run | Yrd Mat Mat Mat Fac DSF Fac Low Low Dat Pro Fac Upp Upp War Pro Fac Turns Passed 11745 | 87 441 998 555 243 307 1773 600 592 184 462 273 318 838 1918 975 1181 Spaces Moved 5119 | 45 201 473 159 96 84 552 209 213 76 184 161 211 509 1202 361 383 Core 7 | 2 . . . . . . . . . . . . . . . 5 Treads 2973 | 43 201 473 159 96 84 552 209 213 76 184 18 . . . 299 366 Legs . | . . . . . . . . . . . . . . . . . Wheels 2139 | . . . . . . . . . . . 143 211 509 1202 62 12 Hover . | . . . . . . . . . . . . . . . . . Flight . | . . . . . . . . . . . . . . . . . Fastest Speed 50 | 50 160 160 170 250 250 240 240 240 245 245 145 145 145 130 145 90 Average Speed 191 | 155 160 160 246 250 250 278 240 241 245 245 156 145 145 144 219 206 Slowest Speed 800 | 160 160 320 250 250 250 330 240 245 245 245 245 145 145 145 237 800 Overloaded Moves . | . . . . . . . . . . . . . . . . . Propulsion Burnouts . | . . . . . . . . . . . . . . . . . Robots Hopped . | . . . . . . . . . . . . . . . . . Cave-ins Triggered . | . . . . . . . . . . . . . . . . . Exploration Rate (%) 40 | 4 36 52 28 5 67 20 41 47 68 36 5 41 65 91 58 24 Regions Visited 16 Branch Regions 8 Pre-discovered Areas 6 | . 1 2 . . . . 1 . 1 1 . . . . . . Known Exits Taken 6 | . . . . 1 . 1 . . . . 1 1 1 . 1 . Unknown Exits Taken 9 | 1 1 1 1 . . . 1 1 1 1 . . . 1 . . Scrap Searched 16 | . . . . . . . 4 2 . 2 . 3 2 . 3 . Spaces Dug 9 | . 9 . . . . . . . . . . . . . . . Terrain Destroyed 147 | . 9 . . . . . . 4 . . . . . . 33 101 Melee . | . . . . . . . . . . . . . . . . . Projectile 61 | . . . . . . . . . . . . . . . 33 28 AOE 86 | . 9 . . . . . . 4 . . . . . . . 73 Terrain Rammed . | . . . . . . . . . . . . . . . . . Walls Destroyed . | . . . . . . . . . . . . . . . . . Machines Disabled . | . . . . . . . . . . . . . . . . . Actions | -11 -10 -9 -8 -7 -7 -6 -6 -6 -6 -5 -5 -5 -5 -5 -4 -4 --------- Run | Yrd Mat Mat Mat Fac DSF Fac Low Low Dat Pro Fac Upp Upp War Pro Fac Total 6172 | 57 251 591 252 99 124 656 249 254 75 190 173 217 572 1366 438 608 Wait 368 | . 7 21 37 . 11 19 4 10 . . . . 47 128 . 84 Move 5103 | 44 200 472 158 95 83 551 208 212 75 183 160 210 508 1201 360 383 Hop . | . . . . . . . . . . . . . . . . . Pick Up 81 | 3 2 15 6 1 1 14 4 4 . 1 3 1 . 6 8 12 Fast Attach 50 | 6 1 8 2 . . 2 1 . . 1 . 1 . 13 3 12 Attach 54 | . 1 3 4 1 . 7 3 3 . . 2 . 2 2 14 12 Detach 13 | . . 1 . . . 1 . . . . 2 . . 1 2 6 Swap 54 | 1 2 9 6 2 2 5 3 7 . . 2 . . 4 3 8 Drop 60 | . 1 7 7 . 2 15 3 4 . 2 . 2 . 7 1 9 Fire 370 | . 34 51 31 . 18 42 23 14 . 3 4 3 15 4 47 81 Melee . | . . . . . . . . . . . . . . . . . Ram . | . . . . . . . . . . . . . . . . . Kick . | . . . . . . . . . . . . . . . . . Crush 12 | 3 3 4 1 . . . . . . . . . . . . 1 Escape Stasis 7 | . . . . . 7 . . . . . . . . . . . Rewire . | . . . . . . . . . . . . . . . . . Trap . | . . . . . . . . . . . . . . . . . Miscellaneous . | . . . . . . . . . . . . . . . . . Route ------- -11/Scrapyard -10/Materials -9/Materials (discovered 2 exits: [*Mat] / *Min) -8/Materials -7/Factory -7/DSF -6/Factory (discovered 2 exits: *Low x2) -6/Lower Caves -6/Lower Caves -6/Data Miner -5/Proximity Caves -5/Factory (discovered 2 exits: Fac / *Upp) -5/Upper Caves -5/Upper Caves (discovered 2 exits: *Fac / *War) -5/Warlord -4/Proximity Caves -4/Factory (discovered 2 exits: [*Res] / [*Upp]) History --------- Turn | Location | Event 30 | -11/Scrapyard | Discovered new exit (range 15) 88 | -11/Scrapyard | Entered Materials 315 | -10/Materials | Build established: Mutant 439 | -10/Materials | Discovered new exit (range 16) 529 | -10/Materials | Entered another Materials area 529 | -9/Materials | Evolved 2 slots: Weapon x2 830 | -9/Materials | Build established: Skirmisher 848 | -9/Materials | Discovered new exit (range 12) 1309 | -9/Materials | Identified exit to Mines 1521 | -9/Materials | Discovered new exit (range 4) 1527 | -9/Materials | Entered another Materials area 1527 | -8/Materials | Evolved 2 slots: Utility x2 1833 | -8/Materials | Build established: Tank 1956 | -8/Materials | Destroyed 8 combat bots 2068 | -8/Materials | Discovered new exit (range 3) 2082 | -8/Materials | Entered Factory 2082 | -7/Factory | Evolved 2 slots: Utility x2 2325 | -7/Factory | Identified exit to DSF 2325 | -7/Factory | Entered DSF 2378 | -7/DSF | Additional patrols routed to DSF 2426 | -7/DSF | Discovered new exit (range 15) 2509 | -7/DSF | Sterilization system engaged 2529 | -7/DSF | Ambient heat levels rising (+10) 2544 | -7/DSF | Ambient heat levels rising (+10) 2559 | -7/DSF | Ambient heat levels rising (+10) 2574 | -7/DSF | Ambient heat levels rising (+10) 2589 | -7/DSF | Ambient heat levels rising (+10) 2604 | -7/DSF | Ambient heat levels rising (+10) 2619 | -7/DSF | Ambient heat levels rising (+10) 2632 | -7/DSF | Entered Factory 2632 | -6/Factory | Evolved 2 slots: Power x1, Utility x1 2945 | -6/Factory | Build established: Scavenger-Tank 2968 | -6/Factory | Identified exit to Lower Caves 3254 | -6/Factory | Found Prototype Device 3735 | -6/Factory | Build established: Tank 4404 | -6/Factory | Build established: Scavenger-Tank 4405 | -6/Factory | Entered Lower Caves 4411 | -6/Lower Caves | Met a Warlord Commander 4414 | -6/Lower Caves | Encountered a Warlord checkpoint 4418 | -6/Lower Caves | Learned location of Warlord (-5) 4419 | -6/Lower Caves | Warlord Commander delivered Encrypted Comm Array 4425 | -6/Lower Caves | Found Encrypted Comm Array 4508 | -6/Lower Caves | Learned 8 Factory zone layouts 4520 | -6/Lower Caves | Learned 4 Factory zone layouts 4855 | -6/Lower Caves | Attacked by a faux Warlord 4908 | -6/Lower Caves | Lost 4 parts (1p3w) 4969 | -6/Lower Caves | Discovered new exit (range 15) 5005 | -6/Lower Caves | Entered another Lower Caves area 5046 | -6/Lower Caves | Attracted the attention of an 0b10 checkpoint 5580 | -6/Lower Caves | Discovered new exit (range 7) 5597 | -6/Lower Caves | Entered Data Miner 5597 | -6/Data Miner | Discovered new exit (range 6) 5644 | -6/Data Miner | Met Data Miner 5686 | -6/Data Miner | Learned location of Section 7 (-3) 5686 | -6/Data Miner | Acquired the access code to Warlord's prototype stash 5725 | -6/Data Miner | Received God Mode back door access code from Data Miner 5781 | -6/Data Miner | Entered Proximity Caves 6221 | -5/Proximity Caves | Discovered new exit (range 7) 6243 | -5/Proximity Caves | Entered Factory 6243 | -5/Factory | Evolved 2 slots: Utility x2 6243 | -5/Factory | Identified Active Sensor Suite 6244 | -5/Factory | Identified exit to Factory 6362 | -5/Factory | Discovered new exit (range 16) 6382 | -5/Factory | Identified exit to Upper Caves 6516 | -5/Factory | Entered Upper Caves 6518 | -5/Upper Caves | Attracted the attention of an 0b10 checkpoint 6599 | -5/Upper Caves | Build established: Skirmisher 6827 | -5/Upper Caves | Discovered new exit (range 5) 6833 | -5/Upper Caves | Identified exit to Upper Caves 6834 | -5/Upper Caves | Entered another Upper Caves area 6991 | -5/Upper Caves | Discovered exit to Factory (range 15) 7030 | -5/Upper Caves | Build established: Derelict-Skirmisher 7048 | -5/Upper Caves | Attracted the attention of an 0b10 checkpoint 7093 | -5/Upper Caves | Learned Factory trap positions 7528 | -5/Upper Caves | Learned Factory emergency access door positions 7555 | -5/Upper Caves | Spotted B-75 Beast 7635 | -5/Upper Caves | Destroyed B-75 Beast 7656 | -5/Upper Caves | Discovered new exit (range 11) 7669 | -5/Upper Caves | Identified exit to Warlord 7672 | -5/Upper Caves | Entered Warlord 8394 | -5/Warlord | Warlord's base attacked by MAIN.C 8504 | -5/Warlord | Met Warlord 8623 | -5/Warlord | Found Prototype Energy Cannon 8627 | -5/Warlord | Found Prototype Energy Gun 8627 | -5/Warlord | Identified Vortex Shotgun 8630 | -5/Warlord | Found Prototype Energy Cannon 8630 | -5/Warlord | Identified Vortex Cannon (x2) 8744 | -5/Warlord | Warlord forces counterattacked 8759 | -5/Warlord | Opened Warlord's prototype stash 8764 | -5/Warlord | Found Prototype Reactor 8764 | -5/Warlord | Identified Vortex Chain Reactor 8774 | -5/Warlord | Found Prototype Device 8774 | -5/Warlord | Identified Exp. Cloaking Device 9069 | -5/Warlord | Warlord base infiltrated, sounded retreat 9275 | -5/Warlord | Spotted Executioner 9305 | -5/Warlord | Spotted Executioner 9309 | -5/Warlord | Spotted Striker 9310 | -5/Warlord | Lost 8 allies 9374 | -5/Warlord | Spotted Striker 9457 | -5/Warlord | Destroyed Striker 9487 | -5/Warlord | Found Prototype Device 9487 | -5/Warlord | Identified Exp. Shock Absorption System 9513 | -5/Warlord | Lost 5 parts (3u2w) 9520 | -5/Warlord | Found Prototype Device 9520 | -5/Warlord | Identified Exp. Thermal Shield 9562 | -5/Warlord | Discovered new exit (range 11) 9590 | -5/Warlord | Entered Proximity Caves 9726 | -4/Proximity Caves | Spotted B-86 Titan 9777 | -4/Proximity Caves | Destroyed B-86 Titan 9806 | -4/Proximity Caves | Lost 8 parts (2p1n2u3w) 10164 | -4/Proximity Caves | Build established: Scavenger-Tank 10457 | -4/Proximity Caves | Lost 3 parts (1p1n1u) 10553 | -4/Proximity Caves | Discovered exit to Factory (range 5) 10561 | -4/Proximity Caves | System corruption reached 10% 10564 | -4/Proximity Caves | System corruption reached 30% 10565 | -4/Proximity Caves | Entered Factory 10565 | -4/Factory | Evolved 2 slots: Propulsion x2 10566 | -4/Factory | Loaded intel: 81 trap records 10654 | -4/Factory | Lost 5 parts (2p1u2w) 11062 | -4/Factory | Discovered new exit (range 74) 11237 | -4/Factory | Discovered new exit (range 60) 11248 | -4/Factory | Garrison activated, responded to threat 11568 | -4/Factory | Build established: Tank 11746 | -4/Factory | Self-destructed Last Messages --------------- 11742_ Acquired 17 matter. 11742_ Acquired 98 matter. 11742_ Acquired 10 matter. 11742_ Acquired 2 matter. 11742_ Acquired 9 matter. 11742_ Acquired 13 matter. 11742_ Acquired 11 matter. 11742_ Acquired 9 matter. 11742_ Acquired 5 matter. 11742_ Acquired 10 matter. 11742_ Hyp. Mass Driver destroyed. 11742_ Adv. Plasma Cannon destroyed. 11742_ Lrn. Tractor Beam destroyed. 11743_ K-01 Serf collects debris. 11743_ HV Slug penetrates H-71 Marshal. 11743_ H-71 Marshal destroyed. 11743_ R-10 Processor collects Disruptor Cannon. 11745_ Hyp. Mass Driver destroyed. 11745_ Lrg. Storage Unit destroyed. 11746_ Critical hit (Burn: +50). Map ----- +----------------------------------------------------+ | ???????????????????????????????????????????# """ | | ???????????????????????????????????????????#* """ | | ???????????????????????????????????????????# """ | | ???????????????????????????????????????????# | | ?????????????????????????????"?????????????# | | ????????????????????????????? ????????????###+### | | ?????????????????????????????? ?????????????# #?? | | ????????????? #################+###########?# #?? | | ??????????? ^ ### ### | | ????????? % ^^ | | ????????? % % ^^ ## | | ???????? ? %! ^ #? | | ????????? % ##? | | ?????????? ! %####"############+##### #?? | | #########"###;#;###?????# # != ### | | %%% ####### / ! # != | | % +% # ! | | R####### # | | ???+#############;k # # # | | ?????????????????# [x; = # """ """ # | | ?????????????????# x = # """ """ ########### # | | ?????????????????# ; # """ """ #?????????# # | | ?????????????????# ;g ###########?????????# # | | ?????????????????# ;g !#???????????????????# # | | ?????????????????# ;g!==!#???????????????????# # | | ????????????????## #g =@|#????################ # | | ?????????????????# ####[!#????# # | | ?????????????????# #??####????# ##### ########## | | ????????????????? ??????????# #??## ##???????? | | ???????????????? ??????????# #??# ########? | | ???????????????? [ ??????????# #??# < #? | | ???????????????# ??????????# #??# ###### #? | | ???????????????# ??????????# #?###+####### #? | | ???????????????# ??????????# #?# ## #? | | ???????????????# ??????????# #?# ## #? | | ??^????????????## ?????????## ### ## ## | | ???????????????? ?^^??????# !## # # | | ????????????????# ???^?????# + + T | | ????????????????+ +??????^?# ## # # | | ????????????????# #????????###### ! ## ## | | ????????????????# #?????????????# ## #? | | ????????????????# ??????????????# ## ## | | ????????????????# ??????????????########## # | | ????????????????# ???????????????????????# | | ??????????????????? ???????????????????????# # | | ??????????????????????????????????????#########+## | | ??????????????????????????????????????#! | | ??????????????????????????????????????# ! | | ??????????????????????????????????????# """ | | ??????????????????????????????????????# """"" | +----------------------------------------------------+ Best States ------------- Heat Dissipation 113 Coolant Potential 80 Energy Generation 55 Energy Capacity 1200 Matter Stores 300 Matter Capacity 300 Sight Range 16 Robot Scan Range 20 Terrain Scan Density 135 Base Temperature (-) 150 Armor Coverage 600 Resistance: KI 20 Resistance: TH 30 Resistance: EX 75 Weapon Shielding 66 Phase Shifting 10 Evasion (%) 50 Target Analysis 6 Recoil Reduction 3 Item Schematics ----------------- Combat Drone Bay | -6/Data Miner | Free Lgt. Regenerative Plating | -6/Data Miner | Free Enh. Flexi-carbon Leg | -6/Data Miner | Free Imp. Matter Compressor | -6/Data Miner | Free Myomer Leg | -6/Data Miner | Free Imp. KE Penetrator | -6/Data Miner | Free Imp. System Guard | -6/Data Miner | Free Dispersion Rifle | -6/Data Miner | Free Robot Schematics ------------------ I-47 Archangel | -6/Data Miner | Free E-15 Imp | -6/Data Miner | Free I-36 Angel | -6/Data Miner | Free H-66 Slayer | -6/Data Miner | Free L-61 Swordsman | -6/Data Miner | Free Fabricated ------------ Nothing Alien Tech Used ----------------- None Achievements -------------- Reappropriation Challenges ------------ None Game ------ Seed MachineFactoryDrive Manual? 0 Play Time 01:30:25 Cumulative 100.4 hours Start 2024.09.27 @ 08:24:52 End 2024.09.27 @ 10:08:58 Sessions 1 Manual Loads 0 Difficulty Rogue Special Mode None Game No. 117 Rogue 113 Adventurer 0 Explorer 4 Win Type - Total 6 Types 4/0/0/2/0/0/0/0/0 Lore% 44 Gallery% 64 Achievement% 57 Wizard Run 0 Options --------- Layout 0 ASCII 0 Keyboard 0 Movement Mouse Keybinds 0 Fullscreen 2 Font 18/SmallcapsGlow Map View 76x50 Zoom Use 0% Tactical HUD 1 Map Filters NONE Filters NONE Steam 1 RUN: dc806956-d9ef-416f-87f6-fa2ec43911d2